bitfinex-derivatives/quotes_ETHF0:USTF0_20250614
["timestamp","ask_amount","ask_price","bid_price","bid_amount"]
[1749942426791,1.03700558,2530.3,2530.2,24.82312]
[1749942427093,1.03700558,2530.3,2530.2,26.87822]
[1749942427296,0.7901,2530.4,2530.3,0.79009]
[1749942427495,1.82718163,2530.4,2530.3,2.15529]
[1749942427692,1.82718163,2530.4,2530.3,2.79699]
[1749942428695,0.7901,2530.4,2530.3,2.79699]
[1749942429297,0.7901,2530.4,2530.3,2.0069]
[1749942433598,0.79008,2530.5,2530.3,2.0069]
[1749942433801,0.79003,2530.6,2530.5,0.79004]
[1749942434099,0.79002,2530.6,2530.5,24.031]
[1749942436700,0.79002,2530.6,2530.4,4.5329]
[1749942436701,2.60581,2530.7,2530.3,0.6417]
[1749942436903,0.79021,2530.0,2529.9,6.18]
[1749942437104,0.79021,2530.0,2529.9,30.99924]
[1749942438903,0.7902,2530.1,2530.0,0.79019]
[1749942449709,0.7902,2530.1,2530.0,24.82019]
[1749942454707,0.79017,2530.2,2530.1,0.79017]
[1749942454913,1.82645615,2530.2,2530.1,0.79017]
[1749942455807,1.03628615,2530.2,2530.1,0.79017]
[1749942456009,0.79009,2530.4,2530.3,0.79012]
[1749942456211,1.03638181,2530.4,2530.3,0.79012]
[1749942456610,1.82646181,2530.4,2530.3,0.79012]
[1749942456914,0.79011,2530.4,2530.3,0.79009]
[1749942457108,1.82659421,2530.4,2530.3,0.79009]
[1749942458512,0.79011,2530.4,2530.3,24.81909]
[1749942458712,1.82634784,2530.4,2530.3,24.81909]
[1749942459108,0.79011,2530.4,2530.3,24.81909]
[1749942459715,1.82633638,2530.4,2530.3,24.81909]
[1749942460313,6.8478,2530.7,2530.5,0.79005]
[1749942460314,0.79004,2530.6,2530.5,0.79005]
[1749942460514,1.826215,2530.6,2530.5,24.81905]
[1749942461313,1.036175,2530.6,2530.5,24.81905]
[1749942461507,1.44401,2530.7,2530.6,0.79002]
[1749942461710,1.68996142,2530.7,2530.6,0.79002]
[1749942461910,1.44399,2530.7,2530.6,1.41592]
[1749942462209,0.654,2530.7,2530.6,1.41592]
[1749942462618,1.44399,2530.7,2530.6,1.41592]
[1749942463110,1.44399,2530.7,2530.6,0.6259]
[1749942463914,1.44399,2530.7,2530.6,1.41592]
[1749942465417,1.44399,2530.7,2530.6,0.6259]
[1749942466014,1.44399,2530.7,2530.6,1.41592]
[1749942467714,1.44399,2530.7,2530.6,0.6259]
[1749942468322,1.44399,2530.7,2530.6,1.41592]
[1749942470216,1.44399,2530.7,2530.6,0.6259]
[1749942470726,1.44399,2530.7,2530.6,1.41592]
[1749942472522,1.44399,2530.7,2530.6,0.6259]
[1749942472724,1.44399,2530.7,2530.6,1.41592]
[1749942473422,1.44399,2530.7,2530.6,0.6259]
[1749942473619,1.44399,2530.7,2530.6,1.41592]
[1749942474328,1.44399,2530.7,2530.6,0.6259]
[1749942477423,1.97427,2531.7,2530.6,8.8337]
[1749942477725,0.7899,2531.0,2530.9,0.00592897]
[1749942477919,1.82430259,2531.0,2530.9,0.00592897]
[1749942478119,4.51930259,2531.0,2530.9,0.00592897]
[1749942481329,4.51948241,2531.0,2530.9,0.00592897]
[1749942482726,4.51948241,2531.0,2530.9,0.79585897]
[1749942483029,4.51948241,2531.0,2530.9,0.00592897]
[1749942489332,4.58757509,2531.0,2530.9,0.00592897]
[1749942490239,0.78999,2530.7,2530.6,4.62371]
[1749942491541,0.78999,2530.7,2530.6,1.41591]
[1749942491740,0.78999,2530.8,2530.7,0.78997]
[1749942491941,1.82614302,2530.8,2530.7,0.78997]
[1749942493940,1.03615302,2530.8,2530.7,0.78997]
[1749942495045,1.82611302,2530.8,2530.7,0.78997]
[1749942495444,1.03615302,2530.8,2530.7,0.78997]
[1749942495650,0.00588905,2530.9,2530.8,0.78996]
[1749942495848,1.0425265,2530.9,2530.8,0.78996]
[1749942496549,0.78996,2530.8,2530.7,5.25598]
[1749942496852,1.8266352,2530.8,2530.7,3.2078]
[1749942498649,1.8266352,2530.8,2530.7,3.99779]
[1749942499150,1.8266352,2530.8,2530.7,3.2078]
[1749942500256,1.8266352,2530.8,2530.7,3.99779]
[1749942501054,0.07398173,2530.9,2530.8,0.78996]
[1749942501346,0.07398173,2530.9,2530.8,2.81686]
[1749942501552,1.042885,2530.9,2530.8,8.99386]
[1749942504354,0.00588905,2530.9,2530.8,8.99386]
[1749942504561,0.78987,2531.1,2530.8,8.99386]
[1749942504562,2.35044357,2531.9,2531.3,1.97451]
[1749942504751,1.03675651,2531.8,2531.4,31.61307]
[1749942504946,0.78973,2531.6,2531.4,30.8233]
[1749942505157,1.03675651,2531.7,2531.4,34.0311]
[1749942505158,0.6436,2531.7,2531.4,34.0311]
[1749942505456,3.2078,2532.2,2531.5,2.0032]
[1749942505649,1.67936586,2532.1,2531.8,3.2078]
[1749942505951,0.78962,2531.9,2531.8,3.2078]
[1749942506156,1.82538586,2531.9,2531.8,3.2078]
[1749942507153,0.78965,2531.8,2531.7,0.00592897]
[1749942507357,2.46724752,2531.8,2531.7,0.00592897]
[1749942507660,2.46725108,2531.8,2531.7,0.00592897]
[1749942508259,1.43325,2531.8,2531.7,0.00592897]
[1749942510666,0.7898,2531.3,2531.2,30.8245]
[1749942510865,0.7898,2531.3,2531.2,30.8235]
[1749942511164,0.7898,2531.3,2531.2,31.61333]
[1749942511468,0.7898,2531.3,2531.2,32.86713]
[1749942512166,0.79568897,2531.5,2531.4,0.78977]
[1749942513165,0.79568897,2531.5,2531.3,2.04359]
[1749942513368,0.78977,2531.4,2531.3,2.04359]
[1749942513565,0.79568897,2531.5,2531.4,0.78977]
[1749942513864,0.79568897,2531.5,2531.4,2.08237]
[1749942514256,0.79568897,2531.5,2531.4,5.29017]
[1749942514667,0.79568897,2531.5,2531.4,4.5004]
[1749942515360,0.79568897,2531.5,2531.4,5.29017]
[1749942515558,0.79568897,2531.5,2531.4,4.5004]
[1749942517570,0.7898,2531.3,2531.2,0.6315]
[1749942517760,5.18233,2531.3,2531.0,0.00592897]
[1749942518062,0.78987,2531.1,2531.0,0.00592897]
[1749942519664,2.16087,2531.1,2531.0,0.00592897]
[1749942523771,3.19392355,2531.1,2531.0,0.00592897]
[1749942526261,0.79002,2530.6,2530.5,0.663]
[1749942526575,0.79002,2530.6,2530.5,24.692]
[1749942527374,0.79002,2530.6,2530.5,25.48205]
[1749942529273,0.79001,2530.7,2530.6,0.79]
[1749942534177,0.79002,2530.6,2530.5,25.47204]
[1749942534376,0.79002,2530.6,2530.5,25.47205]
[1749942535081,0.79002,2530.7,2530.6,0.79001]
[1749942538272,0.6863,2530.8,2530.5,24.019]
[1749942538473,0.79002,2530.6,2530.5,24.80903]
[1749942539387,0.79002,2530.6,2530.5,24.019]
[1749942540182,0.79002,2530.6,2530.5,24.80905]
[1749942540378,2.66122,2530.8,2530.4,1.3228]
[1749942540572,0.79008,2530.4,2530.3,3.21372897]
[1749942540776,0.79008,2530.4,2530.3,28.02384897]
[1749942541282,0.79007,2530.5,2530.4,0.79007]
[1749942541981,0.79007,2530.5,2530.4,1.44787]
[1749942542879,0.79007,2530.5,2530.4,25.46787]
[1749942543081,0.79007,2530.5,2530.4,24.6778]
[1749942544481,0.79007,2530.5,2530.4,25.46788]
[1749942544681,0.79007,2530.5,2530.4,24.6778]
[1749942551801,0.79007,2530.5,2529.9,3.1506986]
[1749942551802,15.42087799,2530.5,2529.9,3.1506986]
[1749942551987,0.7904,2529.4,2529.3,1.3124]
[1749942552687,5.18359,2529.7,2528.9,3.2078]
[1749942552896,0.79049,2529.1,2529.0,0.65452897]
[1749942553390,10.06913632,2529.1,2529.0,8.97e-06]
[1749942553794,12.56933632,2529.1,2529.0,8.97e-06]
[1749942554390,6.39233632,2529.1,2529.0,8.97e-06]
[1749942554590,12.56933632,2529.1,2529.0,8.97e-06]
[1749942555494,11.49849,2529.1,2529.0,8.97e-06]
[1749942556692,1.97598,2529.5,2529.0,8.97e-06]
[1749942556693,0.00592897,2529.6,2529.0,8.97e-06]
[1749942556894,0.79049,2529.1,2529.0,8.97e-06]
[1749942559199,3.99829,2529.1,2529.0,8.97e-06]
[1749942559698,5.92899,2529.1,2529.0,8.97e-06]
[1749942559888,10.92899,2529.1,2529.0,8.97e-06]
[1749942561298,5.92899,2529.1,2529.0,8.97e-06]
[1749942561496,3.99829,2529.1,2529.0,8.97e-06]
[1749942561696,0.79047,2529.2,2529.0,3.20780897]
[1749942561892,0.79047,2529.2,2529.1,7.4763]
[1749942562600,0.79045,2529.3,2529.1,7.4763]
[1749942562900,0.79041,2529.4,2529.1,8.26677]
[1749942563100,3.21372897,2529.6,2529.1,7.4763]
[1749942563300,0.79045,2529.3,2529.1,8.26678]
[1749942563593,3.21372897,2529.6,2529.2,0.79046]
[1749942563800,0.79043,2529.4,2529.1,7.4763]
[1749942564201,0.79045,2529.3,2529.2,0.79046]
[1749942565295,0.79045,2529.3,2529.2,2.06496]
[1749942565895,0.79046,2529.2,2529.1,1.2973]
[1749942566091,0.79046,2529.2,2529.1,0.6557]
[1749942566297,3.2078,2529.3,2529.0,8.97e-06]
[1749942566298,0.79049,2529.1,2529.0,8.97e-06]
[1749942569505,0.85858268,2529.1,2529.0,8.97e-06]
[1749942570506,0.79049,2529.1,2529.0,8.97e-06]
[1749942581712,1.86697531,2529.1,2529.0,8.97e-06]
[1749942584812,3.14257531,2529.1,2529.0,8.97e-06]
[1749942591915,1.07648531,2529.1,2529.0,0.79052897]
[1749942592215,0.00592897,2529.6,2529.2,0.79044]
[1749942592216,3.21372897,2529.6,2529.2,0.79044]
[1749942592415,0.79042,2529.4,2529.2,0.79044]
[1749942592616,0.79042,2529.4,2529.3,0.6907]
[1749942592815,1.87097832,2529.4,2529.3,1.48113]
[1749942593316,1.87097832,2529.4,2529.3,0.6907]
[1749942595613,1.87097832,2529.4,2529.3,1.48113]
[1749942595812,1.08055832,2529.4,2529.3,1.48113]
[1749942596510,3.21372897,2529.6,2529.5,0.79037]
[1749942596709,4.29435969,2529.6,2529.5,0.79037]
[1749942597819,3.21372897,2529.6,2529.5,0.79037]
[1749942598520,0.00592897,2529.6,2529.5,3.99817]
[1749942598715,0.00592897,2529.6,2529.5,5.28137]
[1749942599217,0.79022,2530.0,2529.9,0.79023]
[1749942599419,1.86976822,2530.0,2529.9,0.79023]
[1749942599615,1.86977822,2530.0,2529.9,0.79024]
[1749942599817,1.86977822,2530.0,2529.9,1.48444]
[1749942600018,1.86977822,2530.0,2529.9,0.6942]
[1749942606521,0.79043,2529.4,2529.2,3.2078]
[1749942606721,0.79043,2529.4,2529.3,0.7904]
[1749942607022,0.79043,2529.4,2529.3,2.1326]
[1749942607819,0.6375,2529.6,2529.3,2.1326]
[1749942607820,5.58391785,2530.3,2529.4,1.976]
[1749942608125,0.7903,2529.8,2529.7,0.7903]
[1749942608518,0.79025,2529.9,2529.8,0.79025]
[1749942608721,0.79025,2529.9,2529.8,2.12975]
[1749942609219,0.79025,2529.9,2529.8,1.3395]
[1749942609421,0.79027,2529.8,2529.7,3.2078]
[1749942611832,0.79026,2529.9,2529.7,3.9981]
[1749942612027,0.79027,2529.8,2529.7,3.2078]
[1749942612325,0.79027,2529.8,2529.7,3.9981]
[1749942613230,0.79026,2529.9,2529.8,0.79027]
[1749942615231,0.79023,2530.0,2529.9,0.79023]
[1749942617434,0.79024,2529.9,2529.8,2.13585]
[1749942617828,0.79027,2529.8,2529.7,3.2078]
[1749942618135,0.79027,2529.8,2529.7,3.9981]
[1749942619828,0.79027,2529.8,2529.7,0.7903]
[1749942621028,3.85122897,2530.2,2530.1,0.79018]
[1749942621229,0.00592897,2530.2,2530.1,0.79018]
[1749942621634,0.00592897,2530.2,2530.1,1.43098]
[1749942622134,0.00592897,2530.2,2530.1,2.72748]
[1749942624043,0.79008,2530.5,2530.1,1.9373]
[1749942624339,0.79006,2530.5,2530.4,0.79007]
[1749942624739,1.46015,2530.6,2530.5,0.79005]
[1749942625536,0.6701,2530.6,2530.5,0.79005]
[1749942626441,1.46012,2530.6,2530.5,0.79005]
[1749942627842,0.6701,2530.6,2530.5,0.79005]
[1749942628938,3.2078,2530.7,2530.6,0.79002]
[1749942630638,3.2078,2530.7,2530.6,1.42412]
[1749942631443,0.00592897,2530.8,2530.7,0.78999]
[1749942631840,3.2078,2531.3,2531.0,0.78989]
[1749942632045,0.78987,2531.1,2531.0,0.78989]
[1749942632243,3.2078,2531.3,2531.2,0.78983]
[1749942632537,0.78983,2531.2,2530.9,7.0719]
[1749942632744,0.6471,2531.2,2531.1,0.78987]
[1749942632934,1.43693,2531.2,2531.0,0.78987]
[1749942633135,0.6471,2531.2,2531.1,0.78987]
[1749942633542,3.8922,2531.3,2531.2,0.78983]
[1749942633543,3.9976,2531.3,2531.2,0.78983]
[1749942633844,3.2078,2531.3,2531.2,0.78983]
[1749942634042,0.00592,2531.4,2531.3,0.7898]
[1749942634532,0.79569,2531.4,2531.2,1.44271]
[1749942634738,0.00592,2531.4,2531.3,0.7898]
[1749942634933,0.00592,2531.4,2531.3,8.4482]
[1749942639948,0.00592,2531.4,2531.3,11.656]
[1749942640346,0.6471,2531.8,2531.7,0.78968]
[1749942641041,0.6471,2531.8,2531.7,1.41548]
[1749942641949,1.43675,2531.8,2531.7,1.41548]
[1749942642152,0.6471,2531.8,2531.7,1.41548]
[1749942642647,1.43675,2531.8,2531.7,1.41548]
[1749942642848,0.6471,2531.8,2531.6,0.7897]
[1749942643345,0.6471,2531.8,2531.7,0.78968]
[1749942643547,3.99728,2532.4,2531.9,1.97402]
[1749942643744,3.2078,2532.4,2532.0,0.6603]
[1749942643941,3.2078,2532.4,2532.1,0.78954]
[1749942644142,0.78949,2532.3,2532.1,0.78953]
[1749942644457,0.78955,2532.2,2532.0,1.44986]
[1749942644750,0.78955,2532.1,2532.0,1.44986]
[1749942644951,0.78953,2532.2,2532.1,0.78955]
[1749942645652,0.78953,2532.2,2532.0,0.6603]
[1749942646050,0.78953,2532.2,2532.1,0.78955]
[1749942646354,3.2078,2532.4,2532.3,0.78949]
[1749942646647,3.2078,2532.7,2532.1,6.279]
[1749942646851,3.30363,2532.6,2532.1,6.279]
[1749942647052,0.78944,2532.5,2532.3,0.78948]
[1749942647252,2.625,2532.6,2532.5,0.78943]
[1749942647458,0.6453,2532.6,2532.5,3.99723]
[1749942648347,0.78932,2532.9,2532.5,3.2078]
[1749942648555,1.46462,2532.9,2532.7,0.78935]
[1749942649554,0.6753,2532.9,2532.5,9.4868]
[1749942649754,0.6753,2532.9,2532.6,6.278]
[1749942649956,0.78937,2532.7,2532.6,6.278]
[1749942650949,0.78943,2532.5,2532.3,0.78948]
[1749942651261,0.69,2532.4,2532.3,0.78948]
[1749942651451,0.69,2532.4,2532.3,7.06748]
[1749942653056,1.47946,2532.4,2532.3,0.78948]
[1749942653254,0.69,2532.4,2532.2,3.99731]
[1749942653757,1.47949,2532.4,2532.2,3.99731]
[1749942654251,2.16019,2532.4,2532.2,3.99731]
[1749942654553,0.78949,2532.3,2532.2,3.9973]
[1749942655055,0.78944,2532.5,2532.4,0.78946]
[1749942655861,3.2078,2532.6,2532.4,0.78946]
[1749942656055,3.99722,2532.6,2532.4,0.78946]
[1749942656560,3.2078,2532.6,2532.4,0.78946]
[1749942656868,3.99723,2532.6,2532.4,0.78946]
[1749942657361,3.99723,2532.6,2532.5,0.78943]
[1749942657656,0.78949,2532.3,2532.0,6.9838]
[1749942657856,0.78948,2532.4,2532.2,0.78949]
[1749942658349,1.3869,2532.5,2532.2,0.78949]
[1749942658552,0.78953,2532.2,2532.0,6.334]
[1749942658752,3.36051,2532.5,2532.0,6.334]
[1749942658954,0.78955,2532.1,2532.0,7.12358]
[1749942659255,0.78955,2532.1,2531.9,10.33732897]
[1749942659963,0.78955,2532.1,2532.0,0.78959]
[1749942660659,3.2078,2532.6,2532.5,0.78943]
[1749942660859,3.2078,2532.9,2532.8,0.78934]
[1749942661563,3.9971,2532.9,2532.8,0.78934]
[1749942661751,3.2078,2532.9,2532.8,0.78934]
[1749942663265,2.75672,2533.2,2533.0,0.78926]
[1749942663967,1.9675,2533.2,2532.8,3.2078]
[1749942664258,0.78919,2533.3,2533.1,0.78924]
[1749942664464,1.0714038,2533.2,2533.1,0.78924]
[1749942664664,3.99696,2533.4,2533.2,0.78918]
[1749942664852,1.07113633,2533.3,2533.0,0.6856]
[1749942665054,3.99697,2533.4,2533.2,0.78921]
[1749942665360,0.627,2533.6,2533.2,0.78921]
[1749942665361,1.07148278,2533.3,2533.2,0.78921]
[1749942665555,0.78914,2533.5,2533.3,0.78915]
[1749942665556,0.78912,2533.5,2533.3,0.78915]
[1749942665765,1.07116139,2533.4,2533.3,0.78918]
[1749942666159,1.86031139,2533.4,2533.2,0.7892]
[1749942666359,0.78915,2533.4,2533.2,0.7892]
[1749942666659,0.78917,2533.4,2533.2,0.7892]
[1749942667169,0.78917,2533.4,2533.2,0.78921]
[1749942667466,1.41611,2533.6,2533.1,5.2285]
[1749942667660,1.41611,2533.6,2533.4,0.78913]
[1749942667868,0.78912,2533.5,2533.4,0.78913]
[1749942668063,0.627,2533.6,2533.2,1.29772897]
[1749942668262,1.41611,2533.6,2533.4,0.78914]
[1749942668662,0.78913,2533.5,2533.3,0.78916]
[1749942668862,0.78915,2533.4,2533.3,0.78916]
[1749942669064,0.78918,2533.3,2533.2,0.00592897]
[1749942670868,0.78918,2533.3,2533.2,0.79513897]
[1749942671964,0.78918,2533.3,2533.2,0.79512897]
[1749942672362,0.6701,2533.5,2533.2,0.79512897]
[1749942672566,0.78915,2533.4,2533.2,0.79512897]
[1749942672864,0.78918,2533.3,2533.2,0.00592897]
[1749942673867,1.85884421,2533.3,2533.2,0.00592897]
[1749942674364,3.17634421,2533.3,2533.2,0.00592897]
[1749942676373,0.78931,2532.9,2532.8,6.333]
[1749942676764,0.7893,2533.0,2532.8,6.333]
[1749942676970,0.78927,2533.1,2532.8,6.333]
[1749942677272,0.78928,2533.0,2532.9,0.78929]
[1749942678573,0.00592897,2533.2,2532.8,6.333]
[1749942678872,0.78929,2533.0,2532.9,0.7893]
[1749942679077,0.78931,2532.9,2532.8,0.78932]
[1749942680168,0.78934,2532.8,2532.7,8.47386897]
[1749942680376,0.78934,2532.8,2532.7,32.73186897]
[1749942680570,0.78931,2532.9,2532.8,0.78932]
[1749942680771,2.0059,2533.1,2532.7,31.94252897]
[1749942680971,0.78932,2532.9,2532.8,0.78932]
[1749942683073,2.0059,2533.1,2532.7,31.93252897]
[1749942683779,0.78934,2532.8,2532.7,8.47387897]
[1749942683977,0.78934,2532.8,2532.7,32.71287897]
[1749942684676,0.78934,2532.8,2532.7,8.47387897]
[1749942684876,0.78934,2532.8,2532.7,32.02807897]
[1749942686186,0.78934,2532.8,2532.7,32.02307897]
[1749942687380,0.78934,2532.8,2532.7,0.67372897]
[1749942687686,0.78934,2532.8,2532.7,24.90072897]
[1749942688382,0.78934,2532.8,2532.7,25.69009897]
[1749942693383,0.78934,2532.8,2532.7,24.86972897]
[1749942694481,0.78934,2532.8,2532.7,25.65909897]
[1749942694785,0.78934,2532.8,2532.7,1.46309897]
[1749942694983,1.86275305,2532.8,2532.7,0.00592897]
[1749942695186,1.86275305,2532.8,2532.7,8.97e-06]
[1749942695187,13.16175305,2532.8,2532.7,8.97e-06]
[1749942695380,15.51564908,2532.8,2532.7,8.97e-06]
[1749942695692,0.78962,2531.9,2531.8,6.299]
[1749942696483,0.78965,2531.8,2531.7,1.46257]
[1749942697387,0.78964,2531.9,2531.7,1.46257]
[1749942697583,0.6606,2532.5,2532.2,0.78951]
[1749942697789,0.78949,2532.3,2532.2,25.00451]
[1749942699791,3.2078,2532.6,2532.2,24.215]
[1749942700092,0.78946,2532.4,2532.3,2.07917]
[1749942700694,0.78946,2532.4,2532.3,1.2897]
[1749942702092,0.78944,2532.5,2532.3,1.2897]
[1749942702294,3.2078,2532.6,2532.5,0.78943]
[1749942702595,3.2078,2532.6,2532.5,25.03543]
[1749942702896,3.2078,2532.6,2532.5,26.39093]
[1749942703085,0.7894,2532.6,2532.5,4.5633]
[1749942703291,3.8751,2533.1,2532.5,35.9137]
[1749942703589,0.78938,2532.7,2532.6,0.7894]
[1749942703894,0.78938,2532.7,2532.6,2.1449]
[1749942704094,0.78938,2532.7,2532.6,1.3555]
[1749942704595,0.7894,2532.6,2532.5,3.2078]
[1749942704890,1.97344,2532.7,2532.5,24.256]
[1749942705098,0.7894,2532.6,2532.5,24.256]
[1749942705291,1.4567,2532.6,2532.5,24.256]
[1749942705991,1.4567,2532.6,2532.5,25.04543]
[1749942706488,0.78939,2532.7,2532.6,0.78939]
[1749942706895,3.99714,2532.8,2532.7,0.78937]
[1749942707190,3.2078,2532.8,2532.7,0.78937]
[1749942707396,3.99715,2532.8,2532.7,0.78937]
[1749942707895,3.99715,2532.8,2532.7,0.6259]
[1749942708088,3.2078,2532.8,2532.7,24.242]
[1749942708793,3.99714,2532.8,2532.7,24.242]
[1749942708999,3.2078,2532.8,2532.6,24.24]
[1749942709298,0.78937,2532.7,2532.6,24.24]
[1749942709598,0.7894,2532.6,2532.5,0.78942]
[1749942709796,0.7894,2532.6,2532.5,25.02942]
[1749942711395,3.2078,2532.8,2532.4,1.42465]
[1749942711590,0.78942,2532.6,2532.5,25.02943]
[1749942712302,0.78939,2532.7,2532.5,25.02943]
[1749942714001,0.78939,2532.7,2532.6,0.7894]
[1749942719808,0.7894,2532.6,2532.5,25.0294]
[1749942720202,7.205,2533.0,2532.5,24.24]
[1749942720508,0.78938,2532.7,2532.6,0.78938]
[1749942721211,0.78936,2532.8,2532.7,0.78936]
[1749942722107,0.78932,2532.9,2532.8,0.7893]
[1749942722299,1.45029,2533.0,2532.9,0.7893]
[1749942722505,0.78925,2533.1,2533.0,0.78927]
[1749942723111,0.7893,2532.9,2532.8,1.33072897]
[1749942723312,0.7893,2532.9,2532.8,2.12006897]
[1749942723502,0.7893,2532.9,2532.8,1.33072897]
[1749942723706,0.7893,2532.9,2532.8,2.12005897]
[1749942724507,0.7893,2532.9,2532.8,1.33072897]
[1749942727412,0.7893,2532.9,2532.8,2.12006897]
[1749942728917,0.7893,2532.9,2532.8,1.33072897]
[1749942729510,0.7893,2532.9,2532.8,2.12006897]
[1749942730419,0.7893,2532.9,2532.8,1.33072897]
[1749942730615,0.7893,2532.9,2532.8,2.12006897]
[1749942730814,1.8633155,2532.9,2532.8,2.12006897]
[1749942731117,1.8633155,2532.9,2532.8,1.33072897]
[1749942731312,1.8633155,2532.9,2532.8,0.65792897]
[1749942731511,1.8633155,2532.9,2532.8,0.00592897]
[1749942731921,3.8621155,2532.9,2532.8,0.00592897]
[1749942735012,0.78943,2532.5,2532.4,1.42765]
[1749942736718,0.78942,2532.6,2532.5,0.78942]
[1749942736919,0.78943,2532.5,2532.4,1.42764]
[1749942738420,0.78942,2532.6,2532.5,0.78942]
[1749942740019,0.78943,2532.5,2532.4,1.42763]
[1749942740419,0.78942,2532.6,2532.5,0.78942]
[1749942745515,0.665,2532.8,2532.4,0.6382]
[1749942745722,0.78941,2532.6,2532.5,0.78941]
[1749942748423,0.78943,2532.5,2532.4,1.42764]
[1749942749622,1.97343,2532.7,2532.3,3.2078]
[1749942749822,0.78945,2532.5,2532.4,0.78946]
[1749942750025,0.78945,2532.5,2532.4,0.78945]
[1749942750026,0.78944,2532.5,2532.4,0.78945]
[1749942750722,0.78946,2532.4,2532.3,4.66997]
[1749942751021,1.3663,2532.7,2532.4,0.78946]
[1749942751219,1.07462524,2532.6,2532.4,0.78946]
[1749942751421,1.3663,2532.7,2532.4,0.78946]
[1749942751618,0.78946,2532.4,2532.3,3.8805]
[1749942751927,0.78946,2532.4,2532.2,7.61602897]
[1749942751928,0.78949,2532.3,2532.2,0.00592897]
[1749942752126,2.53896368,2532.3,2532.2,0.00592897]
[1749942753225,5.74676368,2532.3,2532.2,0.00592897]
[1749942753427,7.01366368,2532.3,2532.2,0.00592897]
[1749942754819,5.07196368,2532.3,2532.2,0.00592897]
[1749942763528,5.06942379,2532.3,2532.2,0.00592897]
[1749942768431,6.43772379,2532.3,2532.2,0.00592897]
[1749942768934,6.43773372,2532.3,2532.2,0.00592897]
[1749942773031,6.43773372,2532.3,2531.7,5.84648]
[1749942773032,0.78965,2531.8,2531.7,1.45415]
[1749942773235,0.78965,2531.8,2531.7,1.3353]
[1749942773537,5.1818,2532.0,2531.3,24.071]
[1749942773538,0.78977,2531.4,2531.3,6.234]
[1749942773837,0.7898,2531.4,2531.3,0.78979]
[1749942774037,0.7898,2531.3,2531.2,2.09311]
[1749942774240,0.7898,2531.3,2531.2,3.45811]
[1749942775332,0.7898,2531.3,2531.2,2.6683]
[1749942776242,0.7898,2531.4,2531.3,0.78979]
[1749942776949,0.7898,2531.3,2531.2,3.45811]
[1749942777344,0.78979,2531.4,2531.3,0.7898]
[1749942777545,0.67992897,2531.6,2531.2,2.6683]
[1749942778050,0.78979,2531.4,2531.2,2.6683]
[1749942778244,0.67992897,2531.6,2531.2,2.6683]
[1749942778652,0.7898,2531.4,2531.3,0.7898]
[1749942779051,0.7898,2531.3,2531.2,3.45811]
[1749942779349,0.78979,2531.4,2531.3,0.78979]
[1749942781756,0.00592897,2531.6,2531.5,0.78974]
[1749942783250,0.00592897,2531.6,2531.2,4.5111]
[1749942783450,0.78978,2531.4,2531.3,0.78979]
[1749942785457,0.00592897,2531.6,2531.3,5.0]
[1749942785757,0.00592897,2531.6,2531.4,1.3773]
[1749942786359,0.00592897,2531.6,2531.5,0.78974]
[1749942786855,0.00592897,2531.6,2531.4,2.16706]
[1749942787054,0.78974,2531.5,2531.4,0.78976]
[1749942787262,0.78974,2531.5,2531.4,0.78975]
[1749942787559,0.79565897,2531.6,2531.5,0.78974]
[1749942789563,0.78974,2531.5,2531.4,3.99756]
[1749942789862,0.79565897,2531.6,2531.5,0.78974]
[1749942792063,0.78974,2531.5,2531.4,3.99755]
[1749942792461,0.79565897,2531.6,2531.5,0.78974]
[1749942792765,0.78974,2531.5,2531.4,3.99755]
[1749942792961,0.78979,2531.4,2531.3,0.78978]
[1749942794260,0.7898,2531.3,2531.2,1.3033]
[1749942794457,1.466,2531.3,2531.2,0.6708]
[1749942794858,1.466,2531.3,2531.1,6.21592897]
[1749942794859,0.78983,2531.2,2531.1,0.00592897]
[1749942796262,0.78983,2531.2,2531.1,0.79579897]
[1749942796657,0.78983,2531.2,2531.1,0.00592897]
[1749942798359,1.86451122,2531.2,2531.1,0.00592897]
[1749942798963,3.15901122,2531.2,2531.1,0.00592897]
[1749942799161,2.08433,2531.2,2531.1,0.00592897]
[1749942799362,3.15948757,2531.2,2531.1,0.00592897]
[1749942804162,1.86498757,2531.2,2531.1,0.00592897]
[1749942810168,1.86518232,2531.2,2531.1,0.00592897]
[1749942813072,3.11998232,2531.2,2531.1,0.00592897]
[1749942814375,0.79002,2530.6,2530.5,0.6452]
[1749942815271,3.2078,2530.8,2530.5,0.6452]
[1749942815480,0.78995,2530.9,2530.8,0.78996]
[1749942815672,1.86544763,2530.9,2530.8,0.78996]
[1749942815869,0.78995,2530.9,2530.8,0.78996]
[1749942816271,0.78999,2530.8,2530.7,0.78997]
[1749942817373,0.79002,2530.6,2530.5,1.43524]
[1749942817878,0.79001,2530.7,2530.6,0.78999]
[1749942818475,0.78998,2530.8,2530.7,0.78997]
[1749942818670,0.78999,2530.7,2530.6,3.9978]
[1749942819470,0.78998,2530.8,2530.7,0.78999]
[1749942819867,0.78999,2530.7,2530.6,3.9978]
[1749942821284,0.78998,2530.8,2530.7,0.78997]
[1749942821774,1.86641266,2530.8,2530.7,0.78997]
[1749942822176,0.78999,2530.7,2530.6,3.2078]
[1749942822378,0.79002,2530.6,2530.5,1.43525]
[1749942822578,1.44992,2530.6,2530.5,1.43525]
[1749942822778,0.78996,2530.8,2530.7,0.78999]
[1749942822976,1.86618633,2530.8,2530.7,0.78999]
[1749942824075,0.79,2530.7,2530.6,0.79]
[1749942826690,0.6599,2530.9,2530.5,0.6452]
[1749942826885,0.79001,2530.7,2530.6,0.79]
[1749942827086,1.86686286,2530.7,2530.6,0.79]
[1749942829481,1.07685286,2530.7,2530.6,0.79]
[1749942829681,1.86684286,2530.7,2530.6,0.79]